fUST/lending_fUST_20240421
["ID","MTS","AMOUNT","RATE_DAILY","PERIOD"]
[323092537,1713646238077,-203.91992593,0.00024898,2]
[323092539,1713646238086,-157.94184313,0.00024898,2]
[323092541,1713646238094,-154.86062544,0.00024898,2]
[323092543,1713646238104,-1682.47784807,0.00024898,2]
[323092545,1713646238113,-217.95143474,0.00024898,2]
[323092547,1713646238123,-161.90783343,0.00024898,2]
[323092549,1713646238132,-154.95351395,0.00024898,2]
[323092551,1713646238141,-154.87214684,0.00024898,2]
[323092553,1713646238150,-180.13273192,0.00024898,2]
[323092555,1713646238159,-156.84586358,0.00024898,2]
[323092557,1713646238168,-361.05831142,0.00024898,2]
[323092559,1713646238177,-548.26955098,0.00024898,2]
[323092561,1713646238186,-173.4631406,0.00024898,2]
[323092563,1713646238195,-18403.70006374,0.00024899,2]
[323092565,1713646238203,-155.90796291,0.000249,3]
[323092567,1713646238212,-44444.0,0.000249,2]
[323092569,1713646238221,-153.0,0.000249,2]
[323092571,1713646238230,-153.0,0.000249,2]
[323092573,1713646238238,-153.0,0.000249,2]
[323092575,1713646238247,-153.0,0.000249,2]
[323092576,1713646238256,-44040.7579412,0.00025,5]
[323092656,1713646240057,-2000.0,0.000248,2]
[323092658,1713646240069,-97741.48852812,0.00025,5]
[323092663,1713646240110,-80043.7323395,0.00025,5]
[323093121,1713646265182,346.19544422,0.00021,2]
[323093145,1713647151629,150.0,0.000189,2]
[323093185,1713647432036,-559.45431183,0.00022999,2]
[323093187,1713647432048,-933.0234773,0.00022999,2]
[323093190,1713647432059,-3964.04299966,0.00022999,2]
[323093191,1713647432068,-300.0,0.00023222,2]
[323093193,1713647432077,-300.0,0.00023222,2]
[323093196,1713647432087,-5348.0630337,0.00023223,2]
[323093197,1713647432096,-176.321429,0.00023672,2]
[323093199,1713647432105,-150.0,0.000239,2]
[323093202,1713647432115,-630.18795402,0.00024133,2]
[323093204,1713647432125,-203.4508895,0.000247,2]
[323093206,1713647432137,-203.4508895,0.000247,2]
[323093207,1713647432150,-406.5569878,0.000247,2]
[323093210,1713647432159,-153.0,0.000247,2]
[323093212,1713647432169,-153.0,0.000247,2]
[323093213,1713647432178,-153.0,0.000247,2]
[323093215,1713647432188,-153.0,0.000247,2]
[323093217,1713647432197,-153.0,0.000247,2]
[323093220,1713647432206,-153.0,0.000247,2]
[323093221,1713647432216,-153.0,0.000247,2]
[323093224,1713647432225,-1049.29304238,0.00024798,2]
[323093226,1713647432234,-153.0,0.000248,2]
[323093228,1713647432244,-153.0,0.000248,2]
[323093230,1713647432253,-2000.0,0.000248,2]
[323093232,1713647432262,-748.67217285,0.00024888,2]
[323093233,1713647432271,-211.50693053,0.00024888,2]
[323093235,1713647432280,-207.44587034,0.00024899,2]
[323093237,1713647432289,-8259.31642771,0.000249,2]
[323093311,1713647438233,-36184.68357229,0.000249,2]
[323093313,1713647438242,-194.9,0.00024988,3]
[323093315,1713647438252,-162.41,0.00024988,3]
[323093317,1713647438261,-812.09,0.00024988,3]
[323093319,1713647438270,-378.52419869,0.00024997,2]
[323093321,1713647438280,-4392.49745207,0.00024998,2]
[323093323,1713647438291,-412.80292201,0.00024998,2]
[323093374,1713647443090,-194.69962592,0.00024998,2]
[323093376,1713647443099,-2450.65346149,0.00024998,2]
[323093378,1713647443108,-1086.80536715,0.00024998,2]
[323093379,1713647443118,-31268.344993,0.00024998,2]
[323093381,1713647443127,-13999.40999475,0.00024998,2]
[323093383,1713647443137,-654.32187297,0.00024998,2]
[323093385,1713647443146,-469.67190233,0.00024999,2]
[323093387,1713647443155,-299713.67303393,0.00025,5]
[323093432,1713647956842,18000.0,0.0002525,59]
[323093443,1713648427607,767.39052551,0.00020065,5]
[323093444,1713648480788,176.321429,0.00020416,2]
[323093479,1713648632165,-977.24197565,0.00021067,2]
[323093480,1713648632174,-189.08636994,0.00021067,2]
[323093481,1713648632184,-952.91018891,0.00021068,2]
[323093496,1713648638231,-134.16494935,0.00021068,2]
[323093497,1713648638242,-784.20133193,0.00021069,2]
[323093498,1713648638252,-5456.52078879,0.00021069,2]
[323093499,1713648638261,-300.0,0.0002107,2]
[323093500,1713648638272,-300.0,0.0002107,2]
[323093501,1713648638282,-327.82481239,0.00021077,2]
[323093502,1713648638293,-1819.5184097,0.0002108,2]
[323093503,1713648638303,-225.415165,0.00021298,2]
[323093504,1713648638314,-623.20342483,0.00022193,2]
[323093505,1713648638325,-182.84438622,0.00022195,2]
[323093506,1713648638335,-655.0881512,0.00022198,2]
[323093507,1713648638344,-211.91364755,0.00022294,2]
[323093508,1713648638354,-1476.98563341,0.00022294,2]
[323093509,1713648638365,-400.0,0.00022294,2]
[323093510,1713648638375,-464.76322749,0.00022295,2]
[323093511,1713648638385,-413.55405589,0.00022295,2]
[323093512,1713648638395,-650.94478074,0.00022295,2]
[323093513,1713648638406,-185.22459137,0.00022295,2]
[323093514,1713648638417,-540.60756608,0.00022295,2]
[323093515,1713648638427,-500.0,0.00022295,2]
[323093516,1713648638437,-500.0,0.00022295,2]
[323093517,1713648638445,-500.0,0.00022295,2]
[323093518,1713648638455,-424.24377371,0.00022295,2]
[323093519,1713648638465,-499.99999999,0.00022295,2]
[323093520,1713648638475,-80000.0,0.00022296,2]
[323093521,1713648638486,-62242.99318994,0.00022297,2]
[323093522,1713648638497,-1643.89860834,0.000223,2]
[323093547,1713648640372,-15988.16718524,0.000223,2]
[323093550,1713648640382,-569.8092594,0.00022302,2]
[323093552,1713648640391,-469.26939572,0.00022431,2]
[323093553,1713648640401,-154.93802479,0.00022431,2]
[323093556,1713648640412,-408.57291394,0.00022431,2]
[323093557,1713648640422,-47638.33759566,0.00022434,2]
[323093560,1713648640432,-167.191503,0.00022445,2]
[323093562,1713648640442,-420.0,0.00022918,2]
[323093564,1713648640451,-150.0,0.0002315,2]
[323093565,1713648640461,-420.0,0.00023177,2]
[323093567,1713648640472,-182.96331992,0.00023545,2]
[323093569,1713648640483,-471.46116533,0.00023742,2]
[323093571,1713648640492,-5795.73951,0.00023747,2]
[323093573,1713648640502,-925.5318754,0.00023748,2]
[323093575,1713648640511,-153.0,0.00023878,2]
[323093577,1713648640520,-153.0,0.00024078,2]
[323093580,1713648640530,-203.4508895,0.00024178,2]
[323093582,1713648640539,-306.0,0.00024356,2]
[323093584,1713648640548,-203.4508895,0.000247,2]
[323093586,1713648640557,-153.0,0.00024712,2]
[323093587,1713648640568,-158.99062785,0.00024749,2]
[323093589,1713648640578,-808.01963008,0.00024896,2]
[323093592,1713648640589,-161.90783343,0.00024896,2]
[323093593,1713648640599,-158.64056506,0.00024896,2]
[323093595,1713648640610,-5000.0,0.00024897,2]
[323093598,1713648640619,-154.87214684,0.00024898,2]
[323093600,1713648640627,-154.95351395,0.00024898,2]
[323093602,1713648640637,-180.13273192,0.00024898,2]
[323093604,1713648640645,-217.95143474,0.00024898,2]
[323093606,1713648640654,-429.337244,0.000249,2]
[323093608,1713648640663,-44444.0,0.000249,2]
[323093609,1713648640673,-587.0,0.00024928,2]
[323093612,1713648640683,-154.86062544,0.00024996,2]
[323093614,1713648640693,-156.84586358,0.00024996,2]
[323093616,1713648640702,-1682.47784807,0.00024996,2]
[323093617,1713648640711,-676.00874118,0.00024996,2]
[323093618,1713648640721,-548.26955098,0.00024996,2]
[323093619,1713648640730,-361.05831142,0.00024996,2]
[323093620,1713648640740,-154.92253873,0.00024998,2]
[323093621,1713648640749,-601.81614276,0.00024998,2]
[323093622,1713648640763,-2094.57281327,0.00024998,2]
[323093623,1713648640773,-1494.36779976,0.00024998,2]
[323093624,1713648640783,-240.87294261,0.00024998,2]
[323093625,1713648640794,-2688.02333824,0.00024998,2]
[323093626,1713648640803,-277.24658734,0.00024998,2]
[323093627,1713648640812,-2122.71055525,0.00024998,2]
[323093628,1713648640821,-473.53133438,0.00024998,2]
[323093629,1713648640833,-838.83614737,0.00024998,2]
[323093630,1713648640842,-282.52694059,0.00024998,2]
[323093631,1713648640852,-157.94184313,0.00024998,2]
[323093632,1713648640862,-295.20869201,0.00024998,2]
[323093653,1713648643318,-31.41877087,0.00024998,2]
[323093654,1713648643329,-193.30051232,0.00024998,2]
[323093655,1713648643339,-155.02426368,0.00024998,2]
[323093656,1713648643349,-3902.55205741,0.00025,5]
[323093714,1713649832699,-300.0,0.00022933,2]
[323093716,1713649832710,-300.0,0.00022933,2]
[323093718,1713649832719,-1087.07513826,0.00022933,2]
[323093720,1713649832729,-147.47181672,0.00022934,2]
[323093723,1713649832741,-372.15290234,0.00022934,2]
[323093725,1713649832750,-5456.52078879,0.00022934,2]
[323093727,1713649832759,-172.70528947,0.0002295,2]
[323093729,1713649832768,-200.80796431,0.0002307,2]
[323093731,1713649832777,-263.9570469,0.00023175,2]
[323093733,1713649832786,-1078.72371566,0.00023176,2]
[323093735,1713649832795,-225.415165,0.0002318,2]
[323093737,1713649832804,-221.0793081,0.00023215,2]
[323093738,1713649832813,-250.0,0.00023289,2]
[323093740,1713649832822,-711.22904999,0.00024072,2]
[323093741,1713649832832,-169.147374,0.00024658,2]
[323093743,1713649832841,-158.99062784,0.00024749,2]
[323093745,1713649832850,-573.2021323,0.00024806,2]
[323093746,1713649832859,-420.0,0.00024897,2]
[323093747,1713649832868,-22.30836493,0.00024899,2]
[323093748,1713649832879,-1977.69163507,0.00024899,2]
[323093749,1713649832888,-57.34697978,0.00024899,2]
[323094025,1713650395467,8926.0,0.00027699,120]
[323094053,1713651032489,-500.0,0.00022663,2]
[323094055,1713651032597,-587.07513826,0.00022663,2]
[323094056,1713651032607,-165.11655525,0.00022664,2]
[323094082,1713651038579,-1907.0,0.00022665,2]
[323094348,1713651040721,-523.53543373,0.00022665,2]
[323095865,1713651372878,184.63050647,0.00020565,2]
[323095866,1713651498212,22775.6,0.0002,2]
[323095867,1713651674273,150.0,0.00020563,2]
[323095868,1713651975320,150.0,0.000189,2]
[323095869,1713651997640,181.76676603,0.00020563,2]
[323095870,1713652019633,181.76676603,0.000189,2]
[323095871,1713652037641,181.76676603,0.000189,2]
[323095872,1713652055635,331.38211806,0.000189,2]
[323095940,1713652241918,-503.97480015,0.00022264,2]
[323095941,1713652241928,-189.08636994,0.00022264,2]
[323095942,1713652241938,-172.70528947,0.00022265,2]
[323095943,1713652241948,-5456.52078879,0.00022363,2]
[323095944,1713652241959,-1087.07513826,0.00022364,2]
[323095945,1713652241969,-300.0,0.00022364,2]
[323095946,1713652241979,-300.0,0.00022364,2]
[323095947,1713652241990,-4750.9645056,0.0002237,2]
[323095948,1713652241999,-298.31295942,0.00022498,5]
[323095949,1713652242009,-173.755908,0.0002274,2]
[323095950,1713652242019,-1272.8490852,0.00023074,2]
[323095951,1713652242029,-624.5614525,0.00024012,2]
[323095952,1713652242038,-153.0,0.000241,2]
[323095953,1713652242048,-420.0,0.00024293,2]
[323095954,1713652242057,-153.0,0.000243,2]
[323095955,1713652242067,-153.0,0.000243,2]
[323095956,1713652242077,-153.0,0.000244,2]
[323095957,1713652242086,-153.0,0.000244,2]
[323095958,1713652242096,-153.0,0.000244,2]
[323095959,1713652242105,-153.0,0.000244,2]
[323095960,1713652242114,-153.0,0.000244,2]
[323095961,1713652242123,-4220.04803945,0.000245,2]
[323095963,1713652242133,-256.3291695,0.000245,2]
[323095965,1713652242142,-153.0,0.000245,2]
[323095966,1713652242151,-420.0,0.000246,2]
[323095969,1713652242161,-501.55186578,0.00024608,2]
[323095970,1713652242171,-153.0,0.000247,2]
[323095972,1713652242180,-197.49038207,0.00024706,2]
[323095974,1713652242189,-500.0,0.00024706,2]
[323095976,1713652242199,-500.0,0.00024706,2]
[323095978,1713652242208,-156.45788397,0.00024706,2]
[323095980,1713652242218,-500.0,0.00024706,2]
[323095982,1713652242228,-552.61076307,0.00024706,2]
[323095984,1713652242237,-500.0,0.00024706,2]
[323095986,1713652242247,-500.0,0.00024706,2]
[323095988,1713652242256,-500.0,0.00024706,2]
[323095989,1713652242265,-500.0,0.00024706,2]
[323095991,1713652242274,-17114.11772861,0.00024709,2]
[323095993,1713652242284,-623.07864454,0.000248,2]
[323095995,1713652242293,-153.0,0.000248,2]
[323095998,1713652242303,-2000.0,0.00024896,2]
[323095999,1713652242312,-153.0,0.000249,2]
[323096002,1713652242322,-12530.87285958,0.000249,2]
[323096006,1713652242331,-341.82,0.00024989,3]
[323096010,1713652242344,-284.85,0.00024989,3]
[323096014,1713652242352,-177.23745252,0.00024995,2]
[323096016,1713652242362,-278.9763346,0.00024995,2]
[323096018,1713652242372,-9859.38854908,0.00024996,2]
[323096020,1713652242381,-5795.73951,0.00024998,2]
[323096022,1713652242390,-393.43786285,0.00024998,2]
[323096024,1713652242398,-155.17777796,0.00024998,2]
[323096026,1713652242408,-524.25304931,0.00024998,4]
[323096029,1713652242418,-871.29955807,0.00024998,2]
[323096032,1713652242427,-646.60669283,0.00024998,2]
[323096034,1713652242437,-199.50073948,0.00024998,2]
[323096036,1713652242446,-655.08980422,0.00024998,2]
[323096038,1713652242455,-201.64876762,0.00024998,2]
[323096040,1713652242465,-309.61302161,0.00024998,2]
[323096042,1713652242473,-154.84515485,0.00024998,2]
[323096044,1713652242483,-154.84515485,0.00024998,2]
[323096046,1713652242492,-761.22889194,0.00024998,2]
[323096048,1713652242501,-888.60953251,0.00024998,2]
[323096050,1713652242510,-1140.27874626,0.00024998,2]
[323096061,1713652242893,-358.13169284,0.00024998,2]
[323096083,1713652245840,-1087.07513826,0.00022263,2]
[323096084,1713652245850,-436.13959382,0.00024998,2]
[323096085,1713652245860,-539.43970623,0.00024998,2]
[323096086,1713652245871,-154.8915759,0.00024998,2]
[323096087,1713652245881,-519.09777739,0.00024998,2]
[323096088,1713652245901,-297.07324744,0.00024998,2]
[323096110,1713653432097,-1087.07513826,0.00023526,2]
[323096111,1713653432106,-300.0,0.00023527,2]
[323096112,1713653432116,-300.0,0.00023527,2]
[323096113,1713653432126,-279.98600008,0.00023528,2]
[323096114,1713653432135,-980.46187257,0.00023528,2]
[323096115,1713653432147,-630.57692395,0.00023528,2]
[323096116,1713653432158,-3845.48199227,0.00023528,2]
[323096117,1713653432168,-654.04926691,0.00023537,2]
[323096118,1713653432181,-201.77244806,0.00023541,2]
[323096119,1713653432191,-200.0,0.00023662,2]
[323096120,1713653432200,-286.6663782,0.00024658,2]
[323096121,1713653432210,-421.383,0.00024755,2]
[323096122,1713653432222,-438.85788254,0.00024898,2]
[323096123,1713653432233,-1577.82242882,0.00024899,2]
[323096124,1713653432244,-1577.8224288,0.00024899,2]
[323096125,1713653432254,-1577.8224288,0.000249,2]
[323096126,1713653432264,-1022.32080421,0.000249,2]
[323096127,1713653432274,-824.25,0.0002499,3]
[323096128,1713653432283,-600.04,0.0002499,3]
[323096129,1713653432293,-406.98897617,0.00024998,2]
[323096131,1713653432303,-2584.00603942,0.00024998,2]
[323096133,1713653432311,-188.77846293,0.00024998,2]
[323096134,1713653432321,-468.01507081,0.00024998,2]
[323096136,1713653432330,-1089.46926871,0.00024998,2]
[323096138,1713653432339,-450.29008479,0.00024998,2]
[323096141,1713653432349,-361.42917162,0.00024998,2]
[323096142,1713653432358,-335.68213909,0.00024998,2]
[323096144,1713653432368,-154.98448297,0.00024998,2]
[323096146,1713653432377,-468.40473074,0.00024998,2]
[323096148,1713653432386,-4077.47868233,0.00024998,2]
[323096150,1713653432395,-575.21328934,0.00024998,2]
[323096151,1713653432404,-810.62463008,0.00024998,2]
[323096153,1713653432413,-10311.84507837,0.00024999,2]
[323096155,1713653432422,-1789.51641,0.00024999,2]
[323096157,1713653432431,-1789.51641,0.00024999,2]
[323096159,1713653432440,-151.0,0.00024999,2]
[323096161,1713653432449,-151.0,0.00024999,2]
[323096163,1713653432458,-19975.72700039,0.00025,5]
[323096205,1713653437981,-385.20552206,0.000249,2]
[323096281,1713654189493,451.18,0.00025,30]
[323096322,1713654632053,-1087.07513826,0.00022864,2]
[323096324,1713654632063,-5029.64799091,0.00022865,2]
[323096451,1713654640231,-426.87279788,0.00022865,2]
[323096453,1713654640241,-279.98600008,0.00022899,2]
[323096455,1713654640249,-344.8897507,0.000229,2]
[323096457,1713654640259,-301.0,0.00023,2]
[323096459,1713654640268,-250.0,0.00023136,2]
[323096460,1713654640277,-569.198559,0.00023216,2]
[323096463,1713654640286,-300.0,0.0002363,2]
[323096465,1713654640295,-300.0,0.0002363,2]
[323096467,1713654640304,-20254.3562116,0.00023632,2]
[323096469,1713654640313,-384.00064724,0.00023852,2]
[323096470,1713654640322,-554.08786714,0.00023852,2]
[323096472,1713654640331,-620.22807263,0.00023952,2]
[323096474,1713654640340,-2000.0,0.00024,2]
[323096476,1713654640349,-1542.0,0.00024,2]
[323096478,1713654640359,-554.0878671,0.00024114,2]
[323096479,1713654640369,-554.0878671,0.00024376,2]
[323096480,1713654640382,-554.0878671,0.00024637,2]
[323096481,1713654640391,-417.0,0.00024756,2]
[323096482,1713654640400,-153.0,0.000248,2]
[323096483,1713654640409,-153.0,0.000248,2]
[323096484,1713654640418,-203.4508895,0.000248,2]
[323096485,1713654640427,-554.0878671,0.00024899,2]
[323096486,1713654640436,-153.0,0.000249,2]
[323096487,1713654640445,-203.4508895,0.000249,2]
[323096488,1713654640455,-153.0,0.000249,2]
[323096489,1713654640464,-306.0,0.000249,2]
[323096490,1713654640473,-602.74968351,0.00024998,2]
[323096491,1713654640482,-1310.4510807,0.00024998,2]
[323096492,1713654640492,-976.86548412,0.00024998,2]
[323096493,1713654640502,-283.0116979,0.00024998,2]
[323096494,1713654640514,-189.00549416,0.00024998,2]
[323096495,1713654640527,-49729.26535477,0.00024999,2]
[323096496,1713654640665,-30270.73464523,0.00024999,2]
[323096497,1713654640675,-724.7841488,0.00024999,2]
[323096526,1713655209144,977.0,0.00027,120]
[323096612,1713655838410,-154.84515485,0.0002293,2]
[323096614,1713655838420,-104.04728343,0.00022931,2]
[323096693,1713655840559,-64.52783057,0.00022931,2]
[323096694,1713655840569,-424.349472,0.00023028,2]
[323096695,1713655840578,-184.34074595,0.00023032,2]
[323096696,1713655840587,-242.44708109,0.00023131,2]
[323096812,1713655846471,-971.136414,0.00023131,2]
[323096813,1713656207063,4986.814,0.00021,2]
[323096814,1713656237807,535.85707514,0.00021,2]
[323096815,1713656253824,357.2380501,0.00021,2]
[323096816,1713656269827,297.69837508,0.00021,2]
[323096817,1713656286934,10109.91861489,0.00021,2]
[323096818,1713656291824,155.10085342,0.00021,2]
[323096819,1713656304430,3280.52592728,0.00021,2]
[323096820,1713656307841,155.10085342,0.00021,2]
[323096821,1713656325851,155.10085342,0.00021,2]
[323096822,1713656343846,155.10085342,0.00021,2]
[323096823,1713656361848,155.10085342,0.00021,2]
[323096824,1713656379843,155.10085342,0.00021,2]
[323096825,1713656399847,155.10085342,0.00021,2]
[323096826,1713656400748,13258.3839339,0.00020827,2]
[323096827,1713656415855,155.10085342,0.00021,2]
[323096828,1713656437852,155.10085342,0.00021,2]
[323096829,1713656455871,155.10085342,0.00021,2]
[323096830,1713656477860,235.18171628,0.00021,2]
[323096831,1713656495022,619.12236368,0.000189,2]
[323096832,1713656621708,191.87732843,0.00020913,2]
[323096833,1713656733116,24900.0,0.00020251,2]
[323096834,1713656784485,740.6272623,0.00020297,2]
[323096835,1713656785982,250.0,0.00020297,2]
[323096836,1713656793325,212.174736,0.0002037,2]
[323096837,1713656796499,412.74824245,0.000189,2]
[323096838,1713656837133,154.84515485,0.00021,2]
[323096839,1713656837217,705.26131867,0.00021,2]
[323096840,1713656837248,2126.86587672,0.00021,2]
[323096841,1713656842326,187.17961686,0.00021,2]
[323096842,1713656842620,767.53389711,0.00021,5]
[323096843,1713656844659,5456.52078879,0.00021,2]
[323096844,1713656854063,1489.48629134,0.00021,2]
[323096845,1713656860614,767.53389711,0.00019851,2]
[323096846,1713656880656,370.73605986,0.00019851,2]
[323096847,1713656894138,167.392071,0.00020784,2]
[323096850,1713656996315,201.0925632,0.00021,2]
[323096887,1713657032487,-154.84515485,0.00021166,2]
[323096888,1713657032596,-705.26131867,0.00021166,2]
[323096889,1713657032605,-1087.07513826,0.00021167,2]
[323096890,1713657032616,-161.93319074,0.00021168,2]
[323096891,1713657032625,-211.94923146,0.00021168,2]
[323096892,1713657032634,-160.9331397,0.00021175,2]
[323096893,1713657032643,-1509.01208,0.00021237,2]
[323096894,1713657032652,-182.84438622,0.00021961,2]
[323096895,1713657032661,-417.8865852,0.00021961,2]
[323096896,1713657032670,-519.6950038,0.00022057,2]
[323096897,1713657032679,-180.19045256,0.00022057,2]
[323096898,1713657032688,-455.66134652,0.00022057,2]
[323096899,1713657032697,-464.76322749,0.00022057,2]
[323096900,1713657032706,-413.55405589,0.00022057,2]
[323096901,1713657032715,-185.22459137,0.00022057,2]
[323096902,1713657032724,-300.0,0.00022058,2]
[323096903,1713657032733,-300.0,0.00022058,2]
[323096904,1713657032742,-2124.66532894,0.00022058,2]
[323096905,1713657032751,-39482.92472741,0.00022058,2]
[323096906,1713657032833,-19640.59379385,0.00022058,2]
[323096907,1713657032842,-400.0,0.00022059,2]
[323096908,1713657032851,-178.72683445,0.00022059,2]
[323096909,1713657032860,-500.0,0.00022059,2]
[323096910,1713657032870,-500.0,0.00022059,2]
[323096911,1713657032879,-231.81939633,0.00022059,2]
[323096912,1713657032887,-500.0,0.00022059,2]
[323096913,1713657032897,-3034.23604296,0.00022061,2]
[323096946,1713657038500,-500.0,0.00022057,2]
[323096948,1713657038509,-192.42437737,0.00022057,2]
[323096950,1713657038518,-540.60756608,0.00022057,2]
[323096952,1713657038527,-76965.76395704,0.00022061,2]
[323096954,1713657038536,-623.20342483,0.00022061,2]
[323096956,1713657038545,-62242.99318994,0.00022063,2]
[323096958,1713657038554,-178.15166906,0.000228,2]
[323096960,1713657038562,-178.15166904,0.000228,2]
[323096962,1713657038572,-178.15166904,0.000228,2]
[323096964,1713657038581,-153.0,0.00023,2]
[323096966,1713657038590,-277.81259218,0.00023012,2]
[323096968,1713657038598,-1643.89860834,0.00023012,2]
[323096970,1713657038608,-406.901779,0.00023356,2]
[323096972,1713657038618,-153.0,0.00023356,2]
[323096974,1713657038627,-153.0,0.00023356,2]
[323096976,1713657038636,-153.0,0.00023356,2]
[323096978,1713657038645,-153.0,0.00023356,2]
[323096980,1713657038654,-153.0,0.00023378,2]
[323096983,1713657038664,-405.2927534,0.00023378,2]
[323096985,1713657038673,-406.901779,0.00023378,2]
[323096987,1713657038682,-203.4508895,0.00023436,2]
[323096988,1713657038691,-153.0,0.00023478,2]
[323096990,1713657038701,-203.4508895,0.00023478,2]
[323096992,1713657038710,-406.901779,0.00023478,2]
[323096994,1713657038719,-620.01140363,0.00023892,2]
[323096996,1713657038728,-412.74824245,0.000239,2]
[323096999,1713657038737,-420.0,0.00023968,2]
[323097000,1713657038747,-203.4508895,0.00023978,2]
[323097002,1713657038756,-2000.0,0.00024,2]
[323097004,1713657038765,-389.566227,0.00024,2]
[323097006,1713657038774,-389.566227,0.00024,2]
[323097009,1713657038784,-283.76241,0.00024,2]
[323097011,1713657038793,-283.76241,0.00024,2]
[323097013,1713657038802,-1267.06546931,0.00024,2]
[323097197,1713657040728,-343.49929969,0.00024,2]
[323097199,1713657040738,-1610.564769,0.00024,2]
[323097201,1713657040747,-151.0,0.00024,2]
[323097203,1713657040756,-151.0,0.00024,2]
[323097205,1713657040765,-153.0,0.00024,2]
[323097208,1713657040775,-420.0,0.00024264,2]
[323097211,1713657040784,-314.3654199,0.000243,2]
[323097213,1713657040793,-417.0,0.00024569,2]
[323097215,1713657040802,-191.87732843,0.000249,2]
[323097217,1713657040811,-563.98339128,0.00024997,2]
[323097219,1713657040820,-1089.6608071,0.00024997,2]
[323097221,1713657040828,-4.53860098,0.00024997,2]
[323097427,1713657046667,-308.4921876,0.00024996,2]
[323097428,1713657046678,-16.8929992,0.00024997,2]
[323097431,1713657097751,150.0,0.00019963,2]
[323097444,1713657389517,168.575114,0.00020532,2]
[323097445,1713657398882,225.16549497,0.00019963,2]
[323097448,1713657546905,153.0,0.0002499,35]
[323097449,1713657547515,153.0,0.0002498,35]
[323097450,1713657548136,153.0,0.0002497,35]
[323097456,1713657700761,150.11032998,0.00019963,2]
[323097457,1713657818636,250.0,0.00020805,2]
[323097460,1713658140548,363.50235402,0.00020805,2]
[323097463,1713658154544,363.50235402,0.00020805,2]
[323097464,1713658174545,363.50235402,0.00020805,2]
[323097465,1713658192545,363.50235402,0.00020805,2]
[323097466,1713658210558,363.50235402,0.00020805,2]
[323097467,1713658226559,363.50235402,0.00020805,2]
[323097519,1713658232674,-154.84515485,0.00021052,2]
[323097520,1713658232684,-300.0,0.00021053,2]
[323097521,1713658232694,-300.0,0.00021053,2]
[323097522,1713658232703,-427.764402,0.00021054,2]
[323097523,1713658232713,-114.59044315,0.00021054,2]
[323097886,1713658238960,-7676.73867625,0.00021054,2]
[323097887,1713658238970,-406.98897617,0.0002205,2]
[323097888,1713658238979,-3062.24756483,0.0002205,2]
[323097889,1713658238989,-500.0,0.00022051,2]
[323097890,1713658238998,-500.0,0.00022051,2]
[323097891,1713658239007,-500.0,0.00022051,2]
[323097892,1713658239016,-500.0,0.00022051,2]
[323097893,1713658239025,-626.03,0.00022051,2]
[323097894,1713658239034,-626.03,0.00022051,2]
[323097895,1713658239044,-195.28343422,0.00022051,2]
[323097896,1713658239052,-500.0,0.00022051,2]
[323097897,1713658239061,-192.42437737,0.00022051,2]
[323097898,1713658239070,-540.60756608,0.00022051,2]
[323097899,1713658239079,-80000.0,0.00022052,2]
[323097900,1713658239088,-626.03,0.00022052,2]
[323097901,1713658239097,-8967.7,0.00022053,2]
[323097902,1713658239106,-1038.23,0.00022053,2]
[323097903,1713658239117,-500.0,0.00022053,2]
[323097904,1713658239126,-500.0,0.00022053,2]
[323097905,1713658239135,-508.68990399,0.00022053,2]
[323097906,1713658239144,-7526.06,0.00022053,2]
[323097907,1713658239153,-7526.06,0.00022053,2]
[323097908,1713658239168,-500.0,0.00022053,2]
[323097909,1713658239177,-500.0,0.00022053,2]
[323097910,1713658239187,-500.0,0.00022053,2]